[Event "December 12 Late 2023"]
[Site "https://www.chess.com"]
[Date "2023.12.12"]
[Round "10"]
[White "Troff, Kayden"]
[Black "Janaszak, Dawid"]
[Result "1-0"]
[Board "23"]
[TimeControl "180+1"]
[WhiteFideId "2047896"]
[BlackFideId "1119206"]
[WhiteElo "2784"]
[BlackElo "2615"]
[WhiteTeam "USA"]
[BlackTeam "POL"]
[WhiteClock "0:00:05"]
[BlackClock "0:00:05"]

1. d4 {[%clk 0:03:00]}  d5 {[%clk 0:02:59]} 2. Nf3 {[%clk 0:03:01]}  c5 {[%clk 0:02:59]} 3. dxc5 {[%clk 0:03:00]}  e6 {[%clk 0:02:59]} 4. Be3 {[%clk 0:03:00]}  Na6 {[%clk 0:02:56]} 5. g3 {[%clk 0:03:00]}  Bxc5 {[%clk 0:02:55]} 6. Bxc5 {[%clk 0:03:00]}  Nxc5 {[%clk 0:02:56]} 7. Bg2 {[%clk 0:03:01]}  Nf6 {[%clk 0:02:54]} 8. O-O {[%clk 0:03:01]}  O-O {[%clk 0:02:51]} 9. Nbd2 {[%clk 0:03:02]}  Qb6 {[%clk 0:02:48]} 10. Rb1 {[%clk 0:02:57]}  Bd7 {[%clk 0:02:46]} 11. c4 {[%clk 0:02:54]}  Rfd8 {[%clk 0:02:39]} 12. b4 {[%clk 0:02:52]}  Nce4 {[%clk 0:02:35]} 13. Qb3 {[%clk 0:02:34]}  dxc4 {[%clk 0:02:17]} 14. Nxc4 {[%clk 0:02:32]}  Qb5 {[%clk 0:02:02]} 15. Nfe5 {[%clk 0:02:00]}  Be8 {[%clk 0:01:48]} 16. Rbc1 {[%clk 0:01:27]}  Nd2 {[%clk 0:01:26]} 17. Nxd2 {[%clk 0:01:17]}  Rxd2 {[%clk 0:01:27]} 18. Nc4 {[%clk 0:01:01]}  Rd4 {[%clk 0:01:09]} 19. e3 {[%clk 0:00:56]}  Rdd8 {[%clk 0:01:03]} 20. Na5 {[%clk 0:00:54]}  Rab8 {[%clk 0:01:00]} 21. Rc5 {[%clk 0:00:49]}  Qa6 {[%clk 0:00:50]} 22. Rfc1 {[%clk 0:00:27]}  Nd5 {[%clk 0:00:48]} 23. a3 {[%clk 0:00:20]}  Qd6 {[%clk 0:00:35]} 24. Nc4 {[%clk 0:00:17]}  Qe7 {[%clk 0:00:35]} 25. Ne5 {[%clk 0:00:16]}  f6 {[%clk 0:00:30]} 26. Nd3 {[%clk 0:00:15]}  Bf7 {[%clk 0:00:26]} 27. e4 {[%clk 0:00:14]}  Nb6 {[%clk 0:00:25]} 28. e5 {[%clk 0:00:14]}  Rd7 {[%clk 0:00:18]} 29. h4 {[%clk 0:00:13]}  Rbd8 {[%clk 0:00:17]} 30. Nf4 {[%clk 0:00:13]}  Rd2 {[%clk 0:00:16]} 31. Qe3 {[%clk 0:00:12]}  f5 {[%clk 0:00:16]} 32. Rc7 {[%clk 0:00:11]}  R2d7 {[%clk 0:00:16]} 33. R7c2 {[%clk 0:00:09]}  h6 {[%clk 0:00:14]} 34. Kh2 {[%clk 0:00:09]}  g5 {[%clk 0:00:14]} 35. hxg5 {[%clk 0:00:09]}  hxg5 {[%clk 0:00:15]} 36. Nh3 {[%clk 0:00:10]}  g4 {[%clk 0:00:14]} 37. Nf4 {[%clk 0:00:10]}  Kg7 {[%clk 0:00:14]} 38. Kg1 {[%clk 0:00:10]}  Be8 {[%clk 0:00:06]} 39. Re2 {[%clk 0:00:04]}  Bf7 {[%clk 0:00:06]} 40. Rec2 {[%clk 0:00:05]}  Kg8 {[%clk 0:00:06]} 41. Ne2 {[%clk 0:00:05]}  Kg7 {[%clk 0:00:06]} 42. Bf1 {[%clk 0:00:04]}  Kg8 {[%clk 0:00:06]} 43. Nf4 {[%clk 0:00:04]}  Kg7 {[%clk 0:00:07]} 44. Rc3 {[%clk 0:00:05]}  Kg8 {[%clk 0:00:07]} 45. Rd3 {[%clk 0:00:05]}  Rxd3 {[%clk 0:00:07]} 46. Nxd3 {[%clk 0:00:06]}  Kg7 {[%clk 0:00:06]} 47. Nf4 {[%clk 0:00:05]}  Nd5 {[%clk 0:00:07]} 48. Nxd5 {[%clk 0:00:06]}  Rxd5 {[%clk 0:00:07]} 49. Rc8 {[%clk 0:00:06]}  Qd7 {[%clk 0:00:07]} 50. Ra8 {[%clk 0:00:05]}  Qe7 {[%clk 0:00:07]} 51. Qxa7 {[%clk 0:00:05]}  Rxe5 {[%clk 0:00:07]} 52. Qb8 {[%clk 0:00:06]}  Kf6 {[%clk 0:00:06]} 53. Qh8+ {[%clk 0:00:06]}  Kg6 {[%clk 0:00:07]} 54. Qxe5 {[%clk 0:00:06]}  f4 {[%clk 0:00:05]} 55. Bd3+ {[%clk 0:00:05]} 1-0

[Event "December 12 Late 2023"]
[Site "https://www.chess.com"]
[Date "2023.12.12"]
[Round "10"]
[White "Postny, Evgeny"]
[Black "Aghasiyev, Kamal"]
[Result "1-0"]
[Board "24"]
[TimeControl "180+1"]
[WhiteFideId "2804344"]
[BlackFideId "13402854"]
[WhiteElo "2773"]
[BlackElo "2607"]
[WhiteTeam "ISR"]
[BlackTeam "AZE"]
[WhiteClock "0:00:05"]
[BlackClock "0:00:00"]

1. e4 {[%clk 0:02:56]}  e5 {[%clk 0:02:59]} 2. Nf3 {[%clk 0:02:55]}  Nc6 {[%clk 0:02:59]} 3. Bc4 {[%clk 0:02:55]}  Bc5 {[%clk 0:02:58]} 4. d3 {[%clk 0:02:51]}  Nf6 {[%clk 0:02:57]} 5. h3 {[%clk 0:02:50]}  d6 {[%clk 0:02:57]} 6. c3 {[%clk 0:02:50]}  a5 {[%clk 0:02:57]} 7. a4 {[%clk 0:02:49]}  h6 {[%clk 0:02:57]} 8. Nbd2 {[%clk 0:02:48]}  O-O {[%clk 0:02:55]} 9. Nf1 {[%clk 0:02:47]}  Be6 {[%clk 0:02:50]} 10. Bxe6 {[%clk 0:02:44]}  fxe6 {[%clk 0:02:49]} 11. Ng3 {[%clk 0:02:43]}  Qe8 {[%clk 0:02:40]} 12. O-O {[%clk 0:02:39]}  Nh5 {[%clk 0:02:35]} 13. Kh2 {[%clk 0:02:28]}  Nxg3 {[%clk 0:02:31]} 14. fxg3 {[%clk 0:02:29]}  Rf6 {[%clk 0:01:58]} 15. d4 {[%clk 0:02:10]}  Bb6 {[%clk 0:01:56]} 16. dxe5 {[%clk 0:02:08]}  dxe5 {[%clk 0:01:53]} 17. Qe2 {[%clk 0:02:05]}  Qg6 {[%clk 0:01:24]} 18. Nh4 {[%clk 0:01:37]}  Qf7 {[%clk 0:01:23]} 19. Rxf6 {[%clk 0:01:36]}  Qxf6 {[%clk 0:01:23]} 20. Bd2 {[%clk 0:01:32]}  Rd8 {[%clk 0:01:15]} 21. Nf3 {[%clk 0:01:30]}  Ne7 {[%clk 0:01:04]} 22. Rd1 {[%clk 0:01:27]}  Nc8 {[%clk 0:01:04]} 23. c4 {[%clk 0:01:14]}  Ne7 {[%clk 0:00:45]} 24. Bg5 {[%clk 0:01:07]}  Qf8 {[%clk 0:00:39]} 25. Rxd8 {[%clk 0:00:59]}  Qxd8 {[%clk 0:00:39]} 26. Bxe7 {[%clk 0:00:55]}  Qxe7 {[%clk 0:00:38]} 27. Nxe5 {[%clk 0:00:55]}  Qc5 {[%clk 0:00:32]} 28. Nf3 {[%clk 0:00:55]}  Qb4 {[%clk 0:00:32]} 29. Qc2 {[%clk 0:00:49]}  Qc5 {[%clk 0:00:29]} 30. Qd3 {[%clk 0:00:40]}  Qd6 {[%clk 0:00:16]} 31. Qe2 {[%clk 0:00:22]}  e5 {[%clk 0:00:12]} 32. b3 {[%clk 0:00:20]}  c6 {[%clk 0:00:10]} 33. h4 {[%clk 0:00:17]}  Bc5 {[%clk 0:00:07]} 34. g4 {[%clk 0:00:17]}  Qe6 {[%clk 0:00:06]} 35. Ne1 {[%clk 0:00:14]}  Qf6 {[%clk 0:00:04]} 36. Kh3 {[%clk 0:00:12]}  Bd4 {[%clk 0:00:04]} 37. Qf3 {[%clk 0:00:09]}  Qe6 {[%clk 0:00:04]} 38. Nd3 {[%clk 0:00:08]}  b5 {[%clk 0:00:04]} 39. Qf5 {[%clk 0:00:08]}  Qxf5 {[%clk 0:00:03]} 40. gxf5 {[%clk 0:00:08]}  bxc4 {[%clk 0:00:03]} 41. bxc4 {[%clk 0:00:08]}  Kf7 {[%clk 0:00:03]} 42. g4 {[%clk 0:00:08]}  g6 {[%clk 0:00:03]} 43. fxg6+ {[%clk 0:00:04]}  Kxg6 {[%clk 0:00:04]} 44. Kg3 {[%clk 0:00:05]}  h5 {[%clk 0:00:04]} 45. g5 {[%clk 0:00:02]}  Bc3 {[%clk 0:00:04]} 46. Kf3 {[%clk 0:00:03]}  Bd4 {[%clk 0:00:05]} 47. Ke2 {[%clk 0:00:03]}  Bc3 {[%clk 0:00:04]} 48. Kf3 {[%clk 0:00:03]}  Bd4 {[%clk 0:00:04]} 49. Kg2 {[%clk 0:00:03]}  Bc3 {[%clk 0:00:04]} 50. Nc5 {[%clk 0:00:03]}  Bd4 {[%clk 0:00:04]} 51. Nd7 {[%clk 0:00:03]}  Bc3 {[%clk 0:00:04]} 52. Nb8 {[%clk 0:00:03]}  c5 {[%clk 0:00:04]} 53. Nc6 {[%clk 0:00:04]}  Kf7 {[%clk 0:00:03]} 54. Kh3 {[%clk 0:00:03]}  Kg6 {[%clk 0:00:04]} 55. Ne7+ {[%clk 0:00:03]}  Kf7 {[%clk 0:00:04]} 56. Nf5 {[%clk 0:00:03]}  Kg6 {[%clk 0:00:04]} 57. Nd6 {[%clk 0:00:03]}  Kg7 {[%clk 0:00:02]} 58. Nb7 {[%clk 0:00:03]}  Bb4 {[%clk 0:00:02]} 59. Kg2 {[%clk 0:00:03]}  Kg6 {[%clk 0:00:02]} 60. Kf2 {[%clk 0:00:04]}  Kf7 {[%clk 0:00:01]} 61. Ke2 {[%clk 0:00:04]}  Ke6 {[%clk 0:00:01]} 62. Kf3 {[%clk 0:00:04]}  Be1 {[%clk 0:00:01]} 63. Nxc5+ {[%clk 0:00:03]}  Kf7 {[%clk 0:00:01]} 64. Nb3 {[%clk 0:00:03]}  Bxh4 {[%clk 0:00:01]} 65. Nxa5 {[%clk 0:00:04]}  Bxg5 {[%clk 0:00:01]} 66. c5 {[%clk 0:00:04]}  Ke6 {[%clk 0:00:02]} 67. Nc4 {[%clk 0:00:04]}  Bf6 {[%clk 0:00:01]} 68. a5 {[%clk 0:00:04]}  Kd7 {[%clk 0:00:02]} 69. a6 {[%clk 0:00:04]}  Kc6 {[%clk 0:00:03]} 70. Na5+ {[%clk 0:00:04]}  Kc7 {[%clk 0:00:00]} 71. a7 {[%clk 0:00:05]} 1-0

[Event "December 12 Late 2023"]
[Site "https://www.chess.com"]
[Date "2023.12.12"]
[Round "10"]
[White "Dragomirescu, Robin-Alexandru"]
[Black "Atakhan, Abtin"]
[Result "0-1"]
[Board "26"]
[TimeControl "180+1"]
[WhiteFideId "1213849"]
[BlackFideId "22502203"]
[WhiteElo "2600"]
[BlackElo "2748"]
[WhiteTeam "ROU"]
[BlackTeam "IRI"]
[WhiteClock "0:00:25"]
[BlackClock "0:01:26"]

1. b3 {[%clk 0:03:00]}  Nf6 {[%clk 0:02:59]} 2. Bb2 {[%clk 0:03:01]}  g6 {[%clk 0:03:00]} 3. Nc3 {[%clk 0:02:59]}  d5 {[%clk 0:02:55]} 4. d4 {[%clk 0:03:00]}  Bg7 {[%clk 0:02:54]} 5. Qd2 {[%clk 0:03:00]}  c5 {[%clk 0:02:49]} 6. e3 {[%clk 0:03:00]}  cxd4 {[%clk 0:02:48]} 7. exd4 {[%clk 0:03:00]}  Nc6 {[%clk 0:02:48]} 8. O-O-O {[%clk 0:03:00]}  Bf5 {[%clk 0:02:46]} 9. f3 {[%clk 0:02:42]}  h5 {[%clk 0:02:46]} 10. Kb1 {[%clk 0:02:30]}  Nb4 {[%clk 0:02:43]} 11. Rc1 {[%clk 0:02:13]}  a6 {[%clk 0:02:38]} 12. a3 {[%clk 0:02:05]}  Nc6 {[%clk 0:02:32]} 13. Nge2 {[%clk 0:01:54]}  h4 {[%clk 0:02:24]} 14. Rd1 {[%clk 0:01:41]}  b5 {[%clk 0:02:19]} 15. Rg1 {[%clk 0:01:37]}  Rb8 {[%clk 0:02:07]} 16. g4 {[%clk 0:01:35]}  hxg3 {[%clk 0:02:07]} 17. hxg3 {[%clk 0:01:36]}  b4 {[%clk 0:02:07]} 18. axb4 {[%clk 0:01:23]}  Nxb4 {[%clk 0:02:08]} 19. Rc1 {[%clk 0:01:24]}  Bh6 {[%clk 0:02:06]} 20. Nf4 {[%clk 0:01:24]}  Qd6 {[%clk 0:01:51]} 21. Nce2 {[%clk 0:01:20]}  Nxc2 {[%clk 0:01:47]} 22. Rxc2 {[%clk 0:01:19]}  O-O {[%clk 0:01:46]} 23. Nc1 {[%clk 0:01:03]}  Bxc2+ {[%clk 0:01:36]} 24. Kxc2 {[%clk 0:01:04]}  Rfc8+ {[%clk 0:01:31]} 25. Kd1 {[%clk 0:00:57]}  Nh5 {[%clk 0:01:28]} 26. Rh1 {[%clk 0:00:51]}  Nxg3 {[%clk 0:01:26]} 27. Rxh6 {[%clk 0:00:25]}  Nxf1 {[%clk 0:01:26]} 0-1

[Event "December 12 Late 2023"]
[Site "https://www.chess.com"]
[Date "2023.12.12"]
[Round "10"]
[White "Olsen, Filip Boe"]
[Black "Matinian, Nikita"]
[Result "1/2-1/2"]
[Board "27"]
[TimeControl "180+1"]
[WhiteFideId "1440640"]
[BlackFideId "24129100"]
[WhiteElo "2632"]
[BlackElo "2762"]
[WhiteTeam "DEN"]
[BlackTeam "FID"]
[WhiteClock "0:01:54"]
[BlackClock "0:00:50"]

1. d4 {[%clk 0:02:58]}  Nf6 {[%clk 0:03:00]} 2. c4 {[%clk 0:02:59]}  g6 {[%clk 0:02:59]} 3. Nc3 {[%clk 0:02:58]}  Bg7 {[%clk 0:02:59]} 4. e4 {[%clk 0:02:58]}  d6 {[%clk 0:02:59]} 5. h3 {[%clk 0:02:58]}  e5 {[%clk 0:02:59]} 6. d5 {[%clk 0:02:55]}  a5 {[%clk 0:02:58]} 7. g4 {[%clk 0:02:53]}  h5 {[%clk 0:02:58]} 8. g5 {[%clk 0:02:52]}  Nfd7 {[%clk 0:02:58]} 9. h4 {[%clk 0:02:50]}  Nc5 {[%clk 0:02:57]} 10. Be3 {[%clk 0:02:49]}  f5 {[%clk 0:02:56]} 11. gxf6 {[%clk 0:02:48]}  Bxf6 {[%clk 0:02:57]} 12. Nf3 {[%clk 0:02:49]}  Bg4 {[%clk 0:02:57]} 13. Be2 {[%clk 0:02:49]}  Bxf3 {[%clk 0:02:50]} 14. Bxf3 {[%clk 0:02:50]}  Bxh4 {[%clk 0:02:50]} 15. Qd2 {[%clk 0:02:48]}  Nbd7 {[%clk 0:02:50]} 16. O-O-O {[%clk 0:02:47]}  Rf8 {[%clk 0:02:38]} 17. Be2 {[%clk 0:02:46]}  Bxf2 {[%clk 0:02:33]} 18. Bg5 {[%clk 0:02:45]}  Qb8 {[%clk 0:02:08]} 19. Rxh5 {[%clk 0:02:42]}  Qa7 {[%clk 0:01:45]} 20. Rh7 {[%clk 0:02:37]}  Nf6 {[%clk 0:01:06]} 21. Bxf6 {[%clk 0:02:36]}  Be3 {[%clk 0:00:49]} 22. Re7+ {[%clk 0:01:52]}  Kd8 {[%clk 0:00:48]} 23. Rf7+ {[%clk 0:01:52]}  Ke8 {[%clk 0:00:49]} 24. Re7+ {[%clk 0:01:53]}  Kd8 {[%clk 0:00:49]} 25. Rf7+ {[%clk 0:01:53]}  Ke8 {[%clk 0:00:49]} 26. Re7+ {[%clk 0:01:54]}  Kd8 {[%clk 0:00:50]} 1/2-1/2

[Event "December 12 Late 2023"]
[Site "https://www.chess.com"]
[Date "2023.12.12"]
[Round "10"]
[White "Shuvalova, Polina"]
[Black "Ambartsumova, Karina"]
[Result "1-0"]
[Board "28"]
[TimeControl "180+1"]
[WhiteFideId "24171760"]
[BlackFideId "4166299"]
[WhiteElo "2733"]
[BlackElo "2623"]
[WhiteTeam "RUS"]
[BlackTeam "RUS"]
[WhiteClock "0:00:23"]
[BlackClock "0:00:00"]

1. e4 {[%clk 0:03:00]}  e5 {[%clk 0:02:59]} 2. Nf3 {[%clk 0:03:01]}  Nc6 {[%clk 0:03:00]} 3. Nc3 {[%clk 0:03:02]}  Nf6 {[%clk 0:02:59]} 4. Bb5 {[%clk 0:03:02]}  Bc5 {[%clk 0:02:58]} 5. O-O {[%clk 0:03:02]}  Nd4 {[%clk 0:02:56]} 6. Nxe5 {[%clk 0:02:57]}  Nxb5 {[%clk 0:02:40]} 7. Nxb5 {[%clk 0:02:56]}  Nxe4 {[%clk 0:02:39]} 8. Nxf7 {[%clk 0:02:31]}  Kxf7 {[%clk 0:02:37]} 9. Qh5+ {[%clk 0:02:31]}  g6 {[%clk 0:01:20]} 10. Qd5+ {[%clk 0:02:29]}  Kg7 {[%clk 0:01:21]} 11. Qxe4 {[%clk 0:02:26]}  c6 {[%clk 0:01:21]} 12. d4 {[%clk 0:02:21]}  Be7 {[%clk 0:01:16]} 13. Nc3 {[%clk 0:02:07]}  d5 {[%clk 0:01:15]} 14. Qe3 {[%clk 0:02:07]}  Bf5 {[%clk 0:01:11]} 15. Qh6+ {[%clk 0:01:54]}  Kf7 {[%clk 0:01:11]} 16. Qd2 {[%clk 0:01:32]}  Bd6 {[%clk 0:00:58]} 17. Ne2 {[%clk 0:01:30]}  Qh4 {[%clk 0:00:52]} 18. Ng3 {[%clk 0:01:28]}  Rae8 {[%clk 0:00:52]} 19. c3 {[%clk 0:01:14]}  Re6 {[%clk 0:00:44]} 20. Qg5 {[%clk 0:01:08]}  Qxg5 {[%clk 0:00:35]} 21. Bxg5 {[%clk 0:01:08]}  Bd3 {[%clk 0:00:33]} 22. Rfe1 {[%clk 0:01:06]}  Rhe8 {[%clk 0:00:33]} 23. Rxe6 {[%clk 0:01:05]}  Rxe6 {[%clk 0:00:34]} 24. Be3 {[%clk 0:00:53]}  Bxg3 {[%clk 0:00:31]} 25. hxg3 {[%clk 0:00:52]}  a6 {[%clk 0:00:30]} 26. a4 {[%clk 0:00:50]}  Be4 {[%clk 0:00:22]} 27. g4 {[%clk 0:00:46]}  Ke8 {[%clk 0:00:16]} 28. Kh2 {[%clk 0:00:45]}  Re7 {[%clk 0:00:12]} 29. g5 {[%clk 0:00:43]}  Kd7 {[%clk 0:00:12]} 30. Kg3 {[%clk 0:00:43]}  Bf5 {[%clk 0:00:12]} 31. Rh1 {[%clk 0:00:38]}  Bc2 {[%clk 0:00:10]} 32. a5 {[%clk 0:00:38]}  Be4 {[%clk 0:00:10]} 33. Bf4 {[%clk 0:00:38]}  Rf7 {[%clk 0:00:10]} 34. f3 {[%clk 0:00:36]}  Bf5 {[%clk 0:00:10]} 35. Be5 {[%clk 0:00:36]}  Re7 {[%clk 0:00:09]} 36. Bf6 {[%clk 0:00:36]}  Rf7 {[%clk 0:00:09]} 37. Kf4 {[%clk 0:00:35]}  Kd6 {[%clk 0:00:09]} 38. b4 {[%clk 0:00:35]}  Bd3 {[%clk 0:00:08]} 39. Rd1 {[%clk 0:00:32]}  Bf5 {[%clk 0:00:07]} 40. g4 {[%clk 0:00:32]}  Be6 {[%clk 0:00:08]} 41. Rh1 {[%clk 0:00:29]}  Kd7 {[%clk 0:00:00]} 42. Ke5 {[%clk 0:00:23]} 1-0

[Event "December 12 Late 2023"]
[Site "https://www.chess.com"]
[Date "2023.12.12"]
[Round "10"]
[White "Hajiyev, Kanan"]
[Black "Martinez Ramirez, Lennis"]
[Result "0-1"]
[Board "29"]
[TimeControl "180+1"]
[WhiteFideId "13404148"]
[BlackFideId "3509079"]
[WhiteElo "2594"]
[BlackElo "2724"]
[WhiteTeam "AZE"]
[BlackTeam "CUB"]
[WhiteClock "0:00:00"]
[BlackClock "0:00:45"]

1. d4 {[%clk 0:03:00]}  Nf6 {[%clk 0:02:54]} 2. Nf3 {[%clk 0:03:01]}  d5 {[%clk 0:02:54]} 3. c4 {[%clk 0:03:01]}  dxc4 {[%clk 0:02:54]} 4. e3 {[%clk 0:03:01]}  a6 {[%clk 0:02:54]} 5. Bxc4 {[%clk 0:03:01]}  b5 {[%clk 0:02:52]} 6. Be2 {[%clk 0:03:01]}  Bb7 {[%clk 0:02:51]} 7. O-O {[%clk 0:03:02]}  e6 {[%clk 0:02:52]} 8. a4 {[%clk 0:03:00]}  b4 {[%clk 0:02:46]} 9. Nbd2 {[%clk 0:02:53]}  a5 {[%clk 0:02:46]} 10. Nb3 {[%clk 0:02:49]}  Nbd7 {[%clk 0:02:46]} 11. Qc2 {[%clk 0:02:47]}  c5 {[%clk 0:02:46]} 12. dxc5 {[%clk 0:02:38]}  Rc8 {[%clk 0:02:46]} 13. Bb5 {[%clk 0:02:38]}  Bc6 {[%clk 0:02:42]} 14. Rd1 {[%clk 0:02:25]}  Bxc5 {[%clk 0:02:28]} 15. Nxc5 {[%clk 0:01:25]}  Bxb5 {[%clk 0:02:28]} 16. axb5 {[%clk 0:01:23]}  Rxc5 {[%clk 0:02:28]} 17. Qxc5 {[%clk 0:01:17]}  Nxc5 {[%clk 0:02:29]} 18. Rxd8+ {[%clk 0:01:17]}  Kxd8 {[%clk 0:02:30]} 19. Rxa5 {[%clk 0:01:17]}  Kc7 {[%clk 0:02:31]} 20. Ra7+ {[%clk 0:00:34]}  Kb6 {[%clk 0:02:30]} 21. Rxf7 {[%clk 0:00:34]}  Nb3 {[%clk 0:02:31]} 22. Bd2 {[%clk 0:00:30]}  Rd8 {[%clk 0:02:31]} 23. Bxb4 {[%clk 0:00:27]}  Rd1+ {[%clk 0:02:25]} 24. Be1 {[%clk 0:00:27]}  e5 {[%clk 0:02:24]} 25. e4 {[%clk 0:00:20]}  Nxe4 {[%clk 0:02:19]} 26. Kf1 {[%clk 0:00:19]}  Nec5 {[%clk 0:02:18]} 27. Nxe5 {[%clk 0:00:11]}  Nc1 {[%clk 0:02:10]} 28. Rxg7 {[%clk 0:00:09]}  N5b3 {[%clk 0:02:00]} 29. f4 {[%clk 0:00:05]}  Nd2+ {[%clk 0:01:58]} 30. Kf2 {[%clk 0:00:06]}  Ne4+ {[%clk 0:01:58]} 31. Kf1 {[%clk 0:00:03]}  Nd2+ {[%clk 0:01:46]} 32. Kf2 {[%clk 0:00:04]}  Ne4+ {[%clk 0:01:46]} 33. Kf1 {[%clk 0:00:04]}  Nb3 {[%clk 0:01:40]} 34. Rxh7 {[%clk 0:00:04]}  Rb1 {[%clk 0:01:35]} 35. Rd7 {[%clk 0:00:04]}  Kxb5 {[%clk 0:01:27]} 36. Ke2 {[%clk 0:00:04]}  Rxb2+ {[%clk 0:01:27]} 37. Kf3 {[%clk 0:00:04]}  Nf6 {[%clk 0:01:20]} 38. Rf7 {[%clk 0:00:04]}  Nd4+ {[%clk 0:01:19]} 39. Kg3 {[%clk 0:00:03]}  Ne4+ {[%clk 0:01:15]} 40. Kh4 {[%clk 0:00:03]}  Rxg2 {[%clk 0:01:14]} 41. Bg3 {[%clk 0:00:03]}  Kc5 {[%clk 0:01:05]} 42. Kg4 {[%clk 0:00:03]}  Nf2+ {[%clk 0:01:01]} 43. Kh4 {[%clk 0:00:03]}  Ne4 {[%clk 0:00:58]} 44. Ra7 {[%clk 0:00:03]}  Nf5+ {[%clk 0:00:55]} 45. Kh3 {[%clk 0:00:03]}  Nfxg3 {[%clk 0:00:56]} 46. hxg3 {[%clk 0:00:03]}  Rxg3+ {[%clk 0:00:56]} 47. Kh4 {[%clk 0:00:04]}  Rg1 {[%clk 0:00:55]} 48. f5 {[%clk 0:00:02]}  Kd5 {[%clk 0:00:50]} 49. Ng6 {[%clk 0:00:03]}  Nf6 {[%clk 0:00:46]} 50. Ra5+ {[%clk 0:00:03]}  Ke4 {[%clk 0:00:46]} 51. Re5+ {[%clk 0:00:00]}  Kf3 {[%clk 0:00:45]} 0-1

[Event "December 12 Late 2023"]
[Site "https://www.chess.com"]
[Date "2023.12.12"]
[Round "10"]
[White "Sanchez Enriquez, Oscar Gerardo"]
[Black "Rosen, Eric"]
[Result "0-1"]
[Board "31"]
[TimeControl "180+1"]
[WhiteFideId "5106311"]
[BlackFideId "2032562"]
[WhiteElo "2549"]
[BlackElo "2702"]
[WhiteTeam "MEX"]
[BlackTeam "USA"]
[WhiteClock "0:00:03"]
[BlackClock "0:00:18"]

1. e4 {[%clk 0:03:00]}  c5 {[%clk 0:02:59]} 2. Nf3 {[%clk 0:03:01]}  e6 {[%clk 0:02:57]} 3. g3 {[%clk 0:02:57]}  d5 {[%clk 0:02:57]} 4. exd5 {[%clk 0:02:50]}  exd5 {[%clk 0:02:57]} 5. d4 {[%clk 0:02:50]}  Nc6 {[%clk 0:02:55]} 6. Bg2 {[%clk 0:02:50]}  cxd4 {[%clk 0:02:52]} 7. O-O {[%clk 0:02:50]}  Bc5 {[%clk 0:02:48]} 8. Nbd2 {[%clk 0:02:50]}  Nge7 {[%clk 0:02:47]} 9. Nb3 {[%clk 0:02:50]}  Bb6 {[%clk 0:02:48]} 10. Nbxd4 {[%clk 0:02:51]}  Bg4 {[%clk 0:02:39]} 11. h3 {[%clk 0:02:40]}  Bh5 {[%clk 0:02:37]} 12. c3 {[%clk 0:02:22]}  O-O {[%clk 0:02:22]} 13. Be3 {[%clk 0:02:16]}  Qd7 {[%clk 0:02:12]} 14. Re1 {[%clk 0:01:55]}  Rad8 {[%clk 0:02:10]} 15. Nxc6 {[%clk 0:01:49]}  bxc6 {[%clk 0:02:07]} 16. g4 {[%clk 0:01:39]}  Bg6 {[%clk 0:02:07]} 17. Ne5 {[%clk 0:01:35]}  Qb7 {[%clk 0:02:00]} 18. b4 {[%clk 0:01:22]}  Rfe8 {[%clk 0:01:52]} 19. Bxb6 {[%clk 0:01:17]}  axb6 {[%clk 0:01:49]} 20. a4 {[%clk 0:01:18]}  Qc7 {[%clk 0:01:30]} 21. f4 {[%clk 0:01:05]}  Be4 {[%clk 0:01:23]} 22. a5 {[%clk 0:00:38]}  Ng6 {[%clk 0:01:14]} 23. Nxg6 {[%clk 0:00:32]}  hxg6 {[%clk 0:01:13]} 24. axb6 {[%clk 0:00:31]}  Qxb6+ {[%clk 0:01:02]} 25. Qd4 {[%clk 0:00:31]}  Qc7 {[%clk 0:01:01]} 26. Qf2 {[%clk 0:00:29]}  Bxg2 {[%clk 0:00:55]} 27. Kxg2 {[%clk 0:00:30]}  Re4 {[%clk 0:00:55]} 28. Rxe4 {[%clk 0:00:23]}  dxe4 {[%clk 0:00:55]} 29. Re1 {[%clk 0:00:24]}  f5 {[%clk 0:00:52]} 30. Rf1 {[%clk 0:00:08]}  Rd3 {[%clk 0:00:48]} 31. Qc5 {[%clk 0:00:07]}  Rd2+ {[%clk 0:00:27]} 32. Rf2 {[%clk 0:00:07]}  Qxf4 {[%clk 0:00:26]} 33. Rxd2 {[%clk 0:00:06]}  Qxd2+ {[%clk 0:00:27]} 34. Kf1 {[%clk 0:00:06]}  Qd3+ {[%clk 0:00:25]} 35. Kf2 {[%clk 0:00:06]}  Qf3+ {[%clk 0:00:25]} 36. Ke1 {[%clk 0:00:07]}  e3 {[%clk 0:00:20]} 37. Qc4+ {[%clk 0:00:05]}  Kh7 {[%clk 0:00:20]} 38. gxf5 {[%clk 0:00:03]}  Qf2+ {[%clk 0:00:18]} 0-1

[Event "December 12 Late 2023"]
[Site "https://www.chess.com"]
[Date "2023.12.12"]
[Round "10"]
[White "Lin, Bryan Enming"]
[Black "Goltsev, Dmitry"]
[Result "0-1"]
[Board "32"]
[TimeControl "180+1"]
[WhiteFideId "30987121"]
[BlackFideId "24176710"]
[WhiteElo "2537"]
[BlackElo "2674"]
[WhiteTeam "USA"]
[BlackTeam "RUS"]
[WhiteClock "0:00:39"]
[BlackClock "0:01:25"]

1. e4 {[%clk 0:03:00]}  e6 {[%clk 0:02:59]} 2. d4 {[%clk 0:03:01]}  d5 {[%clk 0:03:00]} 3. Nd2 {[%clk 0:03:01]}  c5 {[%clk 0:03:00]} 4. exd5 {[%clk 0:03:01]}  exd5 {[%clk 0:03:01]} 5. Ngf3 {[%clk 0:03:01]}  Nf6 {[%clk 0:03:01]} 6. Be2 {[%clk 0:02:54]}  Nc6 {[%clk 0:02:59]} 7. O-O {[%clk 0:02:50]}  Bd6 {[%clk 0:02:58]} 8. dxc5 {[%clk 0:02:50]}  Bxc5 {[%clk 0:02:59]} 9. Nb3 {[%clk 0:02:50]}  Bb6 {[%clk 0:02:59]} 10. Re1 {[%clk 0:02:48]}  O-O {[%clk 0:02:55]} 11. c3 {[%clk 0:02:41]}  Bg4 {[%clk 0:02:50]} 12. h3 {[%clk 0:02:37]}  Bh5 {[%clk 0:02:48]} 13. Bg5 {[%clk 0:02:36]}  h6 {[%clk 0:02:47]} 14. Bh4 {[%clk 0:02:35]}  Qd6 {[%clk 0:02:48]} 15. Nfd4 {[%clk 0:02:35]}  Bxe2 {[%clk 0:02:47]} 16. Rxe2 {[%clk 0:02:33]}  Ne4 {[%clk 0:02:42]} 17. Nxc6 {[%clk 0:02:14]}  Qxc6 {[%clk 0:02:41]} 18. Nd4 {[%clk 0:02:13]}  Qg6 {[%clk 0:02:39]} 19. f3 {[%clk 0:02:05]}  Nd6 {[%clk 0:02:34]} 20. Bf2 {[%clk 0:01:57]}  Rfe8 {[%clk 0:02:31]} 21. Rxe8+ {[%clk 0:01:39]}  Rxe8 {[%clk 0:02:31]} 22. Qa4 {[%clk 0:01:37]}  Re5 {[%clk 0:02:20]} 23. h4 {[%clk 0:01:30]}  Nc4 {[%clk 0:02:08]} 24. b3 {[%clk 0:01:26]}  Nd2 {[%clk 0:02:06]} 25. Kh1 {[%clk 0:01:16]}  Qf6 {[%clk 0:01:46]} 26. Rd1 {[%clk 0:01:00]}  Ne4 {[%clk 0:01:38]} 27. Be1 {[%clk 0:00:47]}  Rh5 {[%clk 0:01:25]} 28. Qe8+ {[%clk 0:00:46]}  Kh7 {[%clk 0:01:25]} 29. fxe4 {[%clk 0:00:45]}  Qf1+ {[%clk 0:01:24]} 30. Kh2 {[%clk 0:00:44]}  Bc7+ {[%clk 0:01:25]} 31. g3 {[%clk 0:00:39]}  Rxh4# {[%clk 0:01:25]} 0-1